bitfinex/quotes_ETHUSD_20251119
["timestamp","ask_amount","ask_price","bid_price","bid_amount"]
[1763556619237,1.56567875,3106.8,3105.5,1.36159264]
[1763556619238,0.4735,3106.4,3105.7,0.3233]
[1763556619437,0.1819,3107.0,3105.7,0.3233]
[1763556619750,0.6553,3106.3,3105.7,0.3233]
[1763556619952,0.1818,3106.5,3105.7,5.48159089]
[1763556620252,0.1818,3106.5,3105.8,0.90699264]
[1763556620418,0.1818,3106.5,3105.8,1.38199264]
[1763556620618,0.1818,3106.5,3105.7,5.45833512]
[1763556620619,0.6699,3105.9,3105.7,0.3233]
[1763556620842,0.6553,3106.5,3105.8,7.34655732]
[1763556621049,0.4735,3106.4,3105.8,10.56633966]
[1763556621347,0.4881,3105.9,3105.8,4.12677498]
[1763556621518,0.6699,3105.9,3105.8,4.12677498]
[1763556621843,1.1434,3105.9,3105.8,4.12677498]
[1763556622838,1.1434,3105.9,3105.8,3.21978234]
[1763556624015,1.1434,3105.9,3104.7,0.0444]
[1763556624250,0.7074,3105.8,3104.8,9.66245811]
[1763556624449,0.7074,3105.8,3104.9,0.90699264]
[1763556624651,0.4642,3105.7,3104.9,1.23029264]
[1763556624853,0.4573,3105.0,3104.9,0.3233]
[1763556625051,0.4573,3105.0,3104.9,3.22071564]
[1763556625219,0.9215,3105.0,3104.9,3.22071564]
[1763556627239,0.9215,3105.0,3104.6,7.34904636]
[1763556627426,0.9437,3104.9,3104.6,7.34904636]
[1763556627629,0.4409,3104.7,3104.6,4.1280195]
[1763556627820,0.69496065,3105.8,3104.8,0.4662]
[1763556628014,0.4642,3105.7,3104.9,0.90699264]
[1763556628459,0.4642,3105.7,3104.9,1.35979264]
[1763556628865,0.4642,3105.7,3105.2,4.57302296]
[1763556629164,0.4642,3105.7,3105.2,4.68202296]
[1763556629336,0.4642,3105.7,3105.3,9.66090231]
[1763556629733,0.4642,3105.7,3105.3,6.44060154]
[1763556629951,0.4573,3105.4,3105.3,4.23629341]
[1763556630472,0.9215,3105.4,3105.3,4.12729341]
[1763556630633,0.4573,3105.4,3105.3,4.12729341]
[1763556631038,0.9215,3105.4,3105.3,4.12729341]
[1763556631342,0.1818,3105.9,3105.3,11.92061714]
[1763556631542,0.646,3105.9,3105.3,11.92061714]
[1763556631734,0.4573,3105.4,3105.3,4.12729341]
[1763556632666,0.646,3105.9,3105.3,11.03409495]
[1763556633159,0.646,3105.9,3105.4,0.90699264]
[1763556633359,0.1818,3105.9,3105.5,6.44018676]
[1763556633563,0.4642,3105.8,3105.5,6.44018676]
[1763556633757,0.4573,3105.6,3105.5,3.22009338]
[1763556634142,0.4642,3105.8,3105.5,3.22009338]
[1763556634143,0.1818,3105.9,3105.5,10.12648014]
[1763556634343,0.4642,3106.1,3105.5,10.12648014]
[1763556634666,0.4642,3106.1,3105.5,9.66028014]
[1763556636467,0.50536268,3106.0,3105.6,0.90699264]
[1763556636836,0.1818,3106.5,3105.6,0.90699264]
[1763556637041,0.4642,3106.4,3105.9,0.90699264]
[1763556637457,0.4642,3106.4,3106.1,6.43894272]
[1763556637850,0.4639,3106.2,3106.1,3.21947136]
[1763556638689,0.4639,3106.2,3106.1,4.126464]
[1763556638983,0.1818,3106.5,3106.1,11.05810672]
[1763556639151,0.6721,3106.5,3106.2,0.90699264]
[1763556639348,0.6721,3106.5,3106.3,6.43852814]
[1763556639770,0.9542,3106.4,3106.3,4.12625671]
[1763556642655,0.4639,3106.4,3106.3,4.12625671]
[1763556643259,0.50528876,3106.5,3106.4,0.90699264]
[1763556643456,0.30135765,3107.6,3106.6,4.71249664]
[1763556643657,0.1867,3107.9,3107.7,0.90699264]
[1763556643875,0.1867,3107.9,3107.8,4.12470291]
[1763556644158,0.4903,3108.2,3107.8,7.34241318]
[1763556644371,0.4903,3108.2,3107.9,0.90699264]
[1763556644887,0.89062648,3109.0,3107.9,0.90699264]
[1763556644888,0.4903,3108.5,3107.9,0.90699264]
[1763556645391,0.1966,3109.0,3107.9,0.90699264]
[1763556645392,0.4903,3108.4,3107.9,0.90699264]
[1763556645988,0.4903,3108.4,3108.1,0.90699264]
[1763556646395,0.4639,3108.2,3108.1,0.90699264]
[1763556646962,0.9542,3108.2,3108.1,0.90699264]
[1763556648099,0.9542,3108.2,3108.1,4.12439233]
[1763556648493,0.002,3108.4,3108.1,7.34179202]
[1763556649082,0.4915,3108.4,3108.1,7.34179202]
[1763556649276,0.0012,3108.4,3108.1,7.34179202]
[1763556650369,0.4915,3108.4,3108.1,7.34179202]
[1763556650598,0.4639,3108.2,3108.1,4.12439233]
[1763556650986,0.4639,3108.2,3107.9,6.43500942]
[1763556650987,0.9542,3108.2,3108.0,3.21746574]
[1763556651171,0.4639,3108.1,3108.0,3.21746574]
[1763556651367,0.4639,3108.1,3108.0,4.12445838]
[1763556651567,0.4915,3108.4,3108.1,0.90699264]
[1763556651797,0.0012,3108.4,3108.1,0.90699264]
[1763556651998,0.4639,3108.2,3108.1,0.90699264]
[1763556652371,0.9542,3108.2,3108.1,4.12439233]
[1763556652567,0.4639,3108.2,3108.1,4.12439233]
[1763556652785,0.9542,3108.2,3107.2,0.4629]
[1763556653098,0.2234,3108.1,3107.4,1.01599264]
[1763556653825,0.2234,3108.1,3107.4,1.47889264]
[1763556654019,0.0012,3108.4,3107.5,0.4629]
[1763556654189,0.4903,3108.3,3107.5,0.4629]
[1763556654382,0.4903,3108.3,3107.7,0.90699264]
[1763556655219,0.0012,3108.4,3107.7,0.90699264]
[1763556655805,0.0012,3108.4,3107.7,1.36989264]
[1763556656298,0.0012,3108.4,3107.8,10.11603081]
[1763556656716,0.0012,3108.4,3108.3,0.4927]
[1763556656923,0.0012,3108.4,3108.3,0.6557]
[1763556657307,0.0012,3108.4,3108.3,1.5509]
[1763556657688,0.0012,3108.4,3108.3,6.26339664]
[1763556657887,0.0012,3108.4,3108.3,4.19557821]
[1763556658316,0.0012,3108.4,3108.3,7.41277088]
[1763556659019,0.0012,3108.4,3108.3,7.00726688]
[1763556659526,0.0012,3108.4,3108.3,7.41277088]
[1763556660314,0.4903,3109.7,3108.6,3.21688219]
[1763556660511,0.677,3110.1,3108.7,1.01599264]
[1763556660711,0.4903,3110.0,3108.7,1.47889264]
[1763556660917,0.4903,3110.0,3108.8,0.4629]
[1763556661322,0.4903,3110.0,3108.9,0.109]
[1763556661498,0.4903,3110.0,3108.8,0.4629]
[1763556661831,0.4903,3110.0,3108.9,0.109]
[1763556662040,0.4903,3110.0,3108.8,0.4629]
[1763556662041,0.4903,3110.0,3109.0,0.109]
[1763556662395,0.4903,3110.0,3109.3,0.90699264]
[1763556663818,0.4639,3109.4,3109.3,0.90699264]
[1763556664024,0.4903,3110.0,3109.3,0.90699264]
[1763556664334,0.4903,3109.9,3109.3,0.90699264]
[1763556664556,0.4903,3109.9,3109.5,0.90699264]
[1763556665015,0.4639,3109.6,3109.5,0.90699264]
[1763556665406,0.9542,3109.6,3109.3,3.21615604]
[1763556665726,0.4616,3109.4,3109.3,4.12314868]
[1763556666431,0.9519,3109.4,3109.3,4.12314868]
[1763556666604,0.9519,3109.4,3109.3,4.12315061]
[1763556668125,0.4616,3109.4,3109.3,4.12315061]
[1763556668704,0.9347,3109.4,3109.3,4.12315061]
[1763556669431,0.4616,3109.4,3109.3,4.12315061]
[1763556670438,0.9347,3109.4,3109.3,4.12315061]
[1763556670947,1.4395529,3109.4,3109.3,4.12315061]
[1763556672007,1.4395529,3109.4,3109.3,0.90699264]
[1763556672338,1.4395529,3109.4,3109.3,4.12315061]
[1763556672532,1.4395529,3109.4,3109.3,0.90699264]
[1763556672733,1.4395529,3109.4,3109.3,4.12315061]
[1763556672922,1.4395529,3109.4,3108.8,0.3233]
[1763556673123,1.4395529,3109.4,3107.2,3.86]
[1763556673124,0.4446,3108.9,3108.0,3.21850321]
[1763556673446,0.4541,3108.1,3108.0,3.21850321]
[1763556673655,0.4541,3108.1,3108.0,0.001]
[1763556673806,0.9272,3108.1,3108.0,0.001]
[1763556674006,0.9264,3108.1,3108.0,0.001]
[1763556674238,0.9264,3108.1,3108.0,4.12549585]
[1763556674631,0.9264,3108.1,3108.0,0.001]
[1763556679651,0.4533,3108.1,3108.0,0.001]
[1763556681265,1.43142196,3108.1,3108.0,0.001]
[1763556681462,0.4533,3108.1,3108.0,0.001]
[1763556682029,0.1922,3108.9,3108.0,0.451]
[1763556682227,0.4731,3108.8,3108.0,0.451]
[1763556682662,0.4731,3108.8,3108.1,6.43479938]
[1763556683771,0.1922,3108.9,3108.2,0.03217296]
[1763556683975,0.6653,3108.9,3108.2,0.90699264]
[1763556684175,0.5049554,3108.8,3108.2,0.90699264]
[1763556685005,0.1953,3109.2,3108.7,0.4694]
[1763556685145,0.4939,3109.3,3108.8,0.4694]
[1763556685473,0.1953,3109.5,3108.8,0.4694]
[1763556685843,0.002,3108.9,3108.8,0.4694]
[1763556686872,0.002,3108.9,3108.8,5.07796788]
[1763556687652,0.002,3108.9,3108.8,5.18696788]
[1763556687851,0.002,3108.9,3108.8,6.02734234]
[1763556688242,0.50686242,3108.9,3108.8,6.02734234]
[1763556688644,0.50686242,3108.9,3108.8,5.43344234]
[1763556688844,0.50686242,3108.9,3108.8,5.54244234]
[1763556689049,0.50686242,3108.9,3108.8,6.02734234]
[1763556689853,0.50686242,3108.9,3108.8,5.91834234]
[1763556690048,0.50686242,3108.9,3108.8,6.02734234]
[1763556690284,0.50686242,3108.9,3108.8,12.17436165]
[1763556690979,0.1867,3111.0,3108.8,12.17436165]
[1763556690980,0.1867,3111.0,3109.1,0.90699264]
[1763556691180,0.4939,3110.5,3109.2,2.43653342]
[1763556691609,0.4939,3110.5,3109.3,0.4849]
[1763556692787,0.1867,3111.0,3109.3,0.4849]
[1763556692983,0.4939,3110.5,3109.5,0.90699264]
[1763556693184,0.4939,3110.5,3109.6,0.109]
[1763556693383,0.4939,3110.5,3109.6,1.49702108]
[1763556693914,0.676,3109.7,3109.5,0.90699264]
[1763556694114,0.4939,3110.5,3109.5,0.90699264]
[1763556694285,0.4939,3110.5,3109.6,0.4694]
[1763556694920,0.4939,3110.5,3109.7,9.64723284]
[1763556695287,0.4939,3110.5,3109.8,0.90699264]
[1763556696115,0.4939,3110.7,3109.8,2.44731519]
[1763556696283,0.4939,3110.9,3109.9,0.4849]
[1763556696484,0.1867,3111.0,3109.9,0.4849]
[1763556696782,0.1867,3111.0,3110.0,0.24473152]
[1763556697016,0.003,3111.3,3110.3,0.90699264]
[1763556697194,0.4939,3111.2,3110.3,0.90699264]
[1763556698293,0.4939,3111.2,3110.4,0.4875]
[1763556699009,0.003,3111.3,3110.4,0.4875]
[1763556699010,0.003,3111.3,3111.2,3.21419388]
[1763556699317,0.0022,3111.3,3111.2,5.87720544]
[1763556699615,0.0022,3111.3,3111.2,5.28070544]
[1763556699801,0.0022,3111.3,3111.2,4.59088652]
[1763556700122,0.0022,3111.3,3111.2,5.07838652]
[1763556700824,0.4648,3111.3,3111.2,3.21419388]
[1763556700996,0.9545,3111.3,3110.7,7.33641366]
[1763556701320,0.0022,3111.3,3110.7,9.64413153]
[1763556701522,0.0022,3111.3,3110.7,6.42942102]
[1763556701736,0.4897,3111.2,3110.7,6.42942102]
[1763556702086,0.0022,3111.3,3110.7,6.91692102]
[1763556702306,0.0022,3111.3,3110.7,10.13163153]
[1763556703021,0.0022,3111.3,3110.9,9.64351152]
[1763556703990,0.4626,3111.0,3110.9,3.21450384]
[1763556704196,0.4626,3111.0,3110.8,3.21459366]
[1763556704500,0.0022,3111.3,3110.8,6.42920083]
[1763556704712,0.4897,3111.2,3110.8,6.42920083]
[1763556705097,0.4897,3111.2,3110.5,0.90699264]
[1763556705425,0.4897,3111.2,3110.6,0.03214813]
[1763556705792,0.4897,3111.2,3110.5,0.90699264]
[1763556707431,0.4897,3111.2,3110.6,6.42962772]
[1763556707614,0.6595,3110.7,3110.6,3.21481386]
[1763556707796,0.4897,3111.2,3110.6,6.42962772]
[1763556708000,0.4626,3110.7,3110.6,3.21481386]
[1763556708325,0.50456988,3111.1,3110.6,6.42962772]
[1763556708494,0.0042,3111.3,3110.6,10.11414158]
[1763556708696,0.0042,3111.3,3111.2,0.4697]
[1763556709101,0.0042,3111.3,3111.2,0.9572]
[1763556709303,0.0042,3111.3,3111.2,4.59088652]
[1763556710200,0.0042,3111.3,3111.2,5.07838652]
[1763556710393,0.0042,3111.3,3111.2,5.90765468]
[1763556710807,0.0042,3111.3,3111.2,5.42015468]
[1763556711025,0.0042,3111.3,3111.2,5.52915468]
[1763556711205,0.0042,3111.3,3111.2,6.01665468]
[1763556712234,1e-08,3111.3,3111.2,6.45430061]
[1763556712400,1e-08,3111.3,3111.2,6.42215868]
[1763556712836,1e-08,3111.3,3111.2,6.45430061]
[1763556713134,1e-08,3111.3,3111.2,6.42215868]
[1763556714440,1e-08,3111.3,3111.2,5.90765468]
[1763556714606,1e-08,3111.3,3111.2,6.01665468]
[1763556714801,1e-08,3111.3,3111.2,5.42015468]
[1763556715007,1e-08,3111.3,3111.2,5.90765468]
[1763556715239,0.46260001,3111.3,3111.2,3.21419388]
[1763556715436,0.46260001,3111.3,3110.9,3.21448369]
[1763556715437,1e-08,3111.3,3110.9,3.21448369]
[1763556715779,0.405504,3112.8,3110.8,6.42921434]
[1763556715780,0.87285468,3112.9,3112.5,0.4697]
[1763556716049,0.4897,3113.6,3112.5,0.4697]
[1763556716050,0.1969,3113.9,3112.8,0.4697]
[1763556716255,0.1969,3113.9,3112.5,0.1638]
[1763556716256,0.50416693,3112.9,3112.5,0.2738]
[1763556716409,0.50416693,3112.9,3112.5,0.1638]
[1763556716736,0.1969,3113.9,3112.8,0.4697]
[1763556716940,0.4897,3113.7,3112.8,0.4697]
[1763556717242,0.1969,3113.9,3112.9,0.4875]
[1763556717463,0.4897,3113.8,3112.6,9.63824454]
[1763556717619,0.4897,3113.8,3112.7,0.90699264]
[1763556717821,0.6565,3112.7,3112.1,3.21326435]
[1763556718026,0.1969,3112.2,3111.5,0.4875]
[1763556718219,0.1969,3112.2,3111.6,6.42756138]
[1763556718541,0.4897,3112.1,3111.3,3.2140109]
[1763556718706,0.6569,3111.6,3111.1,3.21429719]
[1763556718907,0.6569,3111.6,3110.8,3.21458944]
[1763556718908,0.1995,3111.2,3110.8,3.21458944]
[1763556719107,0.4574,3111.1,3110.2,6.43039965]
[1763556719334,0.4897,3111.5,3110.3,0.70711997]
[1763556719538,0.50450298,3111.2,3110.4,6.43004114]
[1763556719715,0.4897,3111.5,3110.4,6.43004114]
[1763556720761,0.4897,3111.5,3110.4,9.64506171]
[1763556721356,0.4626,3110.5,3110.1,3.21533069]
[1763556721559,0.4626,3110.5,3109.9,0.90699264]
[1763556721770,0.4626,3110.5,3109.8,6.43128174]
[1763556722058,0.4897,3110.4,3109.8,6.43128174]
[1763556722570,0.405504,3111.5,3109.9,0.90699264]
[1763556722722,0.4897,3110.7,3109.9,0.90699264]
[1763556723445,0.4897,3110.7,3110.0,0.001]
[1763556723670,0.4897,3110.7,3110.1,0.90699264]
[1763556723839,0.4897,3110.9,3110.1,1.06029264]
[1763556724040,0.50463794,3111.2,3110.1,1.54779264]
[1763556724241,0.50463794,3111.2,3110.1,1.06029264]
[1763556724557,0.4626,3110.2,3110.1,0.90699264]
[1763556724731,0.4626,3110.2,3110.0,3.21643408]
[1763556724924,0.405504,3111.1,3110.0,3.21643408]
[1763556725144,0.4626,3110.1,3110.0,3.21643408]
[1763556725542,0.405504,3111.1,3110.0,3.21643408]
[1763556725742,0.405504,3111.1,3110.0,0.001]
[1763556726048,0.4897,3111.0,3110.0,0.001]
[1763556726237,0.4626,3110.1,3110.0,0.001]
[1763556727566,0.9523,3110.1,3110.0,0.001]
[1763556728649,1.357804,3110.1,3110.0,0.001]
[1763556729878,0.9523,3110.1,3110.0,0.001]
[1763556730857,1.357804,3110.1,3110.0,0.001]
[1763556731160,0.9523,3110.1,3110.0,0.001]
[1763556733269,1.357804,3110.1,3110.0,0.001]
[1763556733613,0.405504,3110.0,3108.3,0.1485]
[1763556733759,1.222604,3109.0,3107.5,0.1485]
[1763556734066,1.705304,3109.0,3108.4,3.2170757]
[1763556734389,1.705304,3109.0,3108.3,3.21714489]
[1763556734586,1.705304,3109.0,3107.9,0.90699264]
[1763556735588,1.705304,3109.0,3107.8,6.43537644]
[1763556736497,1.705304,3109.0,3107.7,0.90699264]
[1763556736703,1.705304,3109.0,3107.5,3.21800651]
[1763556736704,0.405504,3108.9,3107.5,3.21800651]
[1763556736907,0.809604,3108.6,3107.5,6.43602742]
[1763556737105,0.809604,3108.6,3107.6,0.90699264]
[1763556737409,1.292304,3108.6,3107.6,0.90699264]
[1763556739093,1.292304,3108.6,3107.7,3.21781381]
[1763556739277,1.292304,3108.6,3107.7,6.43562762]
[1763556740159,0.6698,3109.0,3108.1,0.1485]
[1763556740771,0.1871,3109.0,3108.1,0.1485]
[1763556740975,10.3863308,3109.9,3108.5,0.4625]
[1763556740976,0.1871,3109.3,3108.5,0.4625]
[1763556741208,0.1871,3109.3,3108.6,6.43376438]
[1763556741382,0.1871,3109.3,3108.6,7.44508557]
[1763556741575,0.1871,3109.3,3108.6,10.66196776]
[1763556741779,0.1871,3109.5,3108.6,14.34034995]
[1763556742085,0.1871,3109.5,3108.6,11.12346776]
[1763556742410,0.1871,3109.5,3108.7,1.11244678]
[1763556743179,0.6698,3109.5,3108.8,6.43335048]
[1763556743978,0.6698,3109.5,3108.8,9.65002572]
[1763556744415,0.6698,3109.5,3108.9,0.90699264]
[1763556744632,0.4827,3109.9,3108.9,1.36849264]
[1763556744925,0.4827,3109.9,3109.0,1.42351936]
[1763556745310,0.4827,3109.9,3109.2,9.64878423]
[1763556745677,0.4827,3109.9,3109.2,6.43252282]
[1763556746409,0.4827,3109.9,3109.2,9.64878423]
[1763556746706,0.4827,3109.9,3109.2,10.77239459]
[1763556747626,0.4733,3110.4,3109.3,1.35699264]
[1763556747865,0.405504,3110.3,3109.3,1.35699264]
[1763556748025,0.878804,3110.3,3109.3,0.90699264]
[1763556748227,0.4733,3110.3,3109.3,0.90699264]
[1763556748553,0.4733,3110.2,3109.4,1.16793872]
[1763556748961,0.4725,3110.2,3109.4,1.16793872]
[1763556749649,0.16817733,3110.4,3109.5,6.88190222]
[1763556751227,0.64147733,3110.4,3109.5,6.88190222]
[1763556752069,0.4733,3110.3,3109.5,3.21595111]
[1763556752248,0.4733,3110.3,3109.5,6.43190222]
[1763556752647,0.6779,3109.6,3109.1,6.43266761]
[1763556752841,0.4773,3109.2,3109.1,3.21630275]
[1763556753039,0.4773,3109.2,3108.1,0.1495]
[1763556753236,0.6779,3108.6,3108.5,3.21797288]
[1763556753435,0.4733,3109.1,3108.5,6.43495856]
[1763556754062,0.4733,3109.1,3108.5,0.001]
[1763556754775,0.48,3108.6,3108.5,0.001]
[1763556754938,0.48,3108.6,3108.1,0.001]
[1763556755145,0.405504,3108.1,3108.0,0.001]
[1763556755343,0.602704,3108.1,3106.7,0.90699264]
[1763556755544,0.405504,3107.9,3106.6,6.43790638]
[1763556755973,0.405504,3107.7,3106.6,6.43790638]
[1763556756166,0.405504,3107.7,3106.8,6.43749194]
[1763556756364,0.4733,3107.6,3106.8,6.43749194]
[1763556756568,0.4733,3107.6,3106.8,3.21874597]
[1763556756754,0.4733,3107.6,3106.8,6.43749194]
[1763556757248,0.4733,3107.6,3106.8,9.65623791]
[1763556757472,0.4733,3107.6,3106.8,10.62187826]
[1763556757777,0.4733,3107.6,3106.8,7.40313229]
[1763556757984,0.4733,3107.6,3106.8,6.43749194]
[1763556758149,0.6547,3106.9,3106.6,0.90699264]
[1763556758849,0.6917,3107.2,3106.6,0.90699264]
[1763556759068,0.1987,3107.2,3106.6,0.90699264]
[1763556760197,0.1987,3107.2,3106.7,6.43769916]
[1763556760472,0.1987,3107.2,3106.7,9.65654874]
[1763556761465,0.6917,3107.2,3106.7,6.43769916]
[1763556761668,0.6917,3107.2,3106.7,9.65654874]
[1763556762497,0.493,3107.1,3106.7,6.43769916]
[1763556763350,0.493,3107.1,3106.7,9.65654874]
[1763556764071,0.1987,3107.2,3106.7,6.43769916]
[1763556764283,0.493,3107.1,3106.7,9.65654874]
[1763556765878,0.50516068,3107.1,3106.8,0.90699264]
[1763556766189,0.50516068,3107.1,3106.5,0.001]
[1763556766190,0.456,3106.8,3106.5,0.001]
[1763556766397,0.1879,3106.6,3106.5,0.001]
[1763556766927,0.6809,3106.6,3106.5,0.001]
[1763556767216,1.086404,3106.6,3106.5,0.001]
[1763556767714,0.1879,3106.6,3106.5,0.001]
[1763556768522,0.6809,3106.6,3106.5,0.001]
[1763556769489,1.086404,3106.6,3106.5,0.001]
[1763556771510,0.405504,3106.5,3106.2,0.001]
[1763556771722,0.858904,3106.3,3106.2,0.001]
[1763556772215,1.57779366,3106.3,3106.2,0.001]
[1763556772417,0.405504,3105.9,3105.5,0.001]
[1763556772730,0.1906,3106.0,3105.5,0.001]
[1763556772731,1.054904,3105.6,3105.5,0.001]
[1763556773214,1.547904,3105.6,3105.5,0.001]
[1763556774299,1.547104,3105.6,3105.5,0.001]
[1763556775314,0.405504,3105.5,3104.5,0.001]
[1763556775518,0.795804,3104.6,3104.5,0.001]
[1763556775900,1.288804,3104.6,3104.5,0.001]
[1763556776107,0.1987,3105.0,3104.5,0.4642]
[1763556776409,0.456,3104.6,3104.5,0.001]
[1763556776600,0.405504,3104.9,3104.5,0.001]
[1763556776828,0.1987,3105.0,3104.5,0.001]
[1763556777634,0.6917,3105.0,3104.5,0.001]
[1763556778042,0.493,3104.9,3104.5,0.001]
[1763556778226,0.1987,3105.0,3104.5,0.001]
[1763556778428,0.405504,3105.5,3104.5,0.001]
[1763556778632,0.898504,3105.5,3104.5,0.001]
[1763556778940,0.405504,3105.3,3104.5,0.001]
[1763556779314,1.40409897,3105.2,3104.5,0.001]
[1763556779532,1.40409897,3105.2,3104.2,9.63403308]
[1763556779737,0.405504,3105.0,3104.2,9.63403308]
[1763556780237,0.405504,3104.9,3104.2,9.63403308]
[1763556780438,0.405504,3105.1,3104.3,0.4627]
[1763556780644,0.50559497,3105.2,3104.3,0.4627]
[1763556780803,0.50559497,3105.2,3104.3,1.36969264]
[1763556781821,0.50559497,3105.2,3104.4,0.4627]
[1763556782244,0.50559497,3105.2,3104.3,0.90699264]
[1763556782544,0.99859497,3105.2,3104.5,6.44226122]
[1763556783051,0.493,3105.1,3104.5,9.66339183]
[1763556785344,0.493,3105.1,3104.3,3.22129261]
[1763556786247,0.456,3104.4,3104.2,3.22144191]
[1763556786427,0.1856,3104.3,3104.2,3.22144191]
[1763556787416,0.1856,3104.3,3104.1,0.001]
[1763556788747,0.4503,3104.2,3104.1,0.001]
[1763556789078,0.855804,3104.2,3104.1,0.001]
[1763556789271,1.325204,3104.2,3104.1,0.001]
[1763556789637,1.325204,3104.2,3103.5,0.001]
[1763556789638,0.03029973,3103.7,3103.5,0.001]
[1763556790768,0.4503,3103.6,3103.5,0.001]
[1763556791275,1.325204,3103.6,3103.5,0.001]
[1763556792051,1.325204,3103.6,3103.1,0.001]
[1763556792253,0.2383,3103.1,3102.7,0.001]
[1763556792562,1.040204,3102.8,3102.7,0.001]
[1763556792941,1.509604,3102.8,3102.7,0.001]
[1763556797790,0.405504,3102.8,3102.7,0.9336]
[1763556797965,0.855804,3102.8,3102.7,0.001]
[1763556798273,0.405504,3102.8,3102.7,0.4809]
[1763556798839,0.404704,3102.8,3102.7,0.4809]
[1763556799055,0.855004,3102.8,3102.7,0.001]
[1763556799256,1.324404,3102.8,3102.7,0.001]
[1763556800998,0.405504,3102.7,3102.5,0.001]
[1763556801155,3.13331534,3102.7,3102.5,0.001]
[1763556801352,1.31249664,3102.6,3102.5,0.001]
[1763556801553,2.01277867,3102.6,3102.5,0.001]
[1763556803894,0.405504,3102.5,3102.2,0.001]
[1763556804149,8.17991905,3102.4,3102.2,0.001]
[1763556804303,9.84261825,3102.4,3102.2,0.001]
[1763556805024,3.69369584,3102.4,3102.2,0.001]
[1763556805224,2.72057131,3102.4,3102.2,0.001]
[1763556805536,8.86949372,3102.4,3102.2,0.001]
[1763556805695,1.31249664,3102.3,3102.2,0.001]
[1763556805895,2.91947131,3102.3,3102.2,0.001]
[1763556806098,3.82631068,3102.3,3102.2,0.001]
[1763556807504,3.82631068,3102.3,3102.0,0.001]
[1763556807704,0.654904,3102.1,3102.0,0.001]
[1763556808113,1.126004,3102.1,3102.0,0.001]
[1763556813415,2.03299664,3102.1,3102.0,0.001]
[1763556813645,3.17168753,3102.1,3102.0,0.001]
[1763556813827,2.29508353,3102.1,3102.0,0.001]
[1763556814038,0.69851622,3102.1,3102.0,0.001]
[1763556814351,0.2494,3102.1,3102.0,0.001]
[1763556814825,0.68806872,3102.4,3102.0,0.4811]
[1763556815030,1.15916872,3102.5,3102.0,0.4811]
[1763556815261,0.68806872,3102.6,3102.0,0.4811]
[1763556815442,0.24194827,3102.7,3102.1,0.1533]
[1763556815624,0.002,3102.8,3102.1,0.1533]
[1763556816636,0.002,3102.8,3102.1,0.616]
[1763556816854,0.002,3102.8,3102.1,0.1533]
[1763556817025,0.4731,3102.8,3102.0,0.001]
[1763556817455,0.405504,3102.7,3102.0,0.001]
[1763556817635,0.405504,3102.7,3102.1,0.1533]
[1763556817838,0.002,3102.8,3102.1,0.1533]
[1763556818059,0.002,3102.8,3102.0,0.001]
[1763556818377,0.405504,3102.6,3102.0,0.001]
[1763556818554,0.405504,3102.6,3101.7,3.1834253]
[1763556818758,0.405504,3102.6,3101.7,3.6663253]
[1763556819262,0.405504,3102.3,3101.7,6.89036373]
[1763556819569,0.405504,3102.3,3101.8,0.4829]
[1763556820469,0.405504,3102.3,3102.2,0.6197]
[1763556821342,0.405504,3102.3,3102.2,3.84321879]
[1763556821547,0.50614161,3102.4,3102.2,7.54963758]
[1763556821740,0.50614161,3102.4,3102.3,0.4664]
[1763556822338,0.91164561,3102.4,3102.3,0.4664]
[1763556822541,0.405504,3102.3,3101.6,0.001]
[1763556822759,0.22328496,3102.2,3101.6,0.001]
[1763556822983,0.91633985,3102.2,3101.6,3.2250933]
[1763556823166,0.91633985,3102.2,3101.6,6.44923567]
[1763556823382,0.91633985,3102.2,3101.6,3.2250933]
[1763556823578,0.405504,3102.1,3101.6,3.2250933]
[1763556823779,1.4121418,3102.1,3101.6,3.2250933]
[1763556824095,0.404704,3102.1,3102.0,0.4664]
[1763556824268,1.20018354,3102.4,3102.0,0.4664]
[1763556824474,0.50614161,3102.4,3102.3,0.4664]
[1763556824676,0.50614161,3102.4,3102.1,0.1533]
[1763556824987,0.50614161,3102.4,3101.8,3.22393166]
[1763556825988,0.405504,3102.6,3101.7,6.44807686]
[1763556826187,0.405504,3102.4,3101.7,6.44807686]
[1763556826495,0.405504,3102.4,3101.7,6.93097686]
[1763556826790,0.405504,3102.2,3101.6,3.22509291]
[1763556826995,0.405504,3102.3,3101.6,6.93213528]
[1763556827292,0.405504,3102.4,3101.6,6.93213528]
[1763556827500,0.24147975,3102.3,3101.6,6.93213528]
[1763556828862,0.405504,3102.2,3101.6,6.44923528]
[1763556829111,0.405504,3102.2,3101.6,0.001]
[1763556829298,0.405504,3102.2,3101.6,3.22512586]
[1763556829686,0.405504,3102.2,3101.6,6.44926823]
[1763556830083,0.405504,3102.0,3101.6,3.22512586]
[1763556830292,0.405504,3102.0,3101.6,0.001]
[1763556830501,0.405504,3102.0,3101.6,0.4839]
[1763556830910,0.405504,3102.0,3101.6,0.001]
[1763556832210,1.09954593,3102.0,3101.6,0.001]
[1763556832414,0.859004,3102.0,3101.6,0.001]
[1763556833008,0.405504,3102.0,3101.6,0.4839]
[1763556833214,0.405504,3102.0,3101.9,0.4664]
[1763556833412,1.09954593,3102.1,3101.9,0.4664]
[1763556833612,0.69404193,3102.3,3102.0,0.9493]
[1763556833913,0.69404193,3102.5,3102.2,0.6197]
[1763556834136,0.405504,3102.4,3102.2,0.1533]
[1763556834276,0.002,3102.6,3102.5,0.4664]
[1763556835718,0.002,3102.6,3102.5,0.9493]
[1763556836522,0.002,3102.6,3102.5,4.17250709]
[1763556838834,0.91350902,3102.6,3102.5,4.17250709]
[1763556839037,0.91350902,3102.6,3102.5,3.68960709]
[1763556840639,0.50800502,3102.6,3102.5,4.17250709]
[1763556840954,0.002,3103.2,3102.5,4.17250709]